fUST/lending_fUST_20241203
["ID","MTS","AMOUNT","RATE_DAILY","PERIOD"]
[344034709,1733236154477,-500.0,0.00030136,7]
[344034710,1733236154504,-500.0,0.00030136,7]
[344034711,1733236154528,-500.0,0.00030136,7]
[344034712,1733236154558,-169.32077357,0.00030136,7]
[344034713,1733236154591,-500.0,0.00030136,7]
[344034714,1733236154618,-340.7825412,0.00030136,7]
[344034715,1733236154644,-535.91272939,0.00030136,7]
[344034716,1733236154676,-500.0,0.00030136,7]
[344034717,1733236154703,-500.0,0.00030136,7]
[344034718,1733236154728,-502.26649486,0.00030136,7]
[344034719,1733236154757,-501.09810119,0.00030136,7]
[344034720,1733236154783,-513.20656209,0.00030136,7]
[344034721,1733236154813,-501.43293974,0.00030136,7]
[344034722,1733236154841,-3760.75694944,0.00030425,2]
[344034723,1733236154866,-181.548056,0.00030465,2]
[344034724,1733236154891,-758.44803613,0.00030762,2]
[344034725,1733236154915,-758.4480361,0.00030776,2]
[344034726,1733236154949,-758.4480361,0.0003079,2]
[344034727,1733236154976,-500.0,0.000308,10]
[344034728,1733236155005,-365.07,0.000308,2]
[344034729,1733236155033,-758.4480361,0.00030804,2]
[344034730,1733236155065,-758.4480361,0.00030819,2]
[344034731,1733236155092,-758.4480361,0.00030833,2]
[344034732,1733236155117,-193.75141636,0.00030833,2]
[344034733,1733236155143,-229.0,0.00030837,2]
[344034734,1733236155168,-168.0,0.00030837,7]
[344034735,1733236155192,-500.0,0.00030837,7]
[344034736,1733236155216,-500.0,0.00030837,7]
[344034737,1733236155242,-500.0,0.00030837,7]
[344034738,1733236155267,-500.0,0.00030837,7]
[344034740,1733236155401,-500.0,0.00030837,7]
[344034741,1733236155424,-500.0,0.00030837,7]
[344034742,1733236155448,-576.83,0.00030837,7]
[344034743,1733236155470,-468.82017943,0.00030837,7]
[344034744,1733236170243,-31.17982057,0.00030837,7]
[344034745,1733236170266,-500.0,0.00030837,7]
[344034746,1733236170289,-500.0,0.00030837,7]
[344034747,1733236170315,-500.0,0.00030837,7]
[344034748,1733236170339,-500.0,0.00030837,7]
[344034749,1733236170362,-500.0,0.00030837,7]
[344034750,1733236170385,-500.0,0.00030837,7]
[344034751,1733236170407,-501.05720113,0.00030837,7]
[344034752,1733236170429,-500.0,0.00030837,7]
[344034753,1733236170453,-589.53,0.00030837,7]
[344034754,1733236170474,-500.0,0.00030837,7]
[344034755,1733236170496,-500.0,0.00030837,7]
[344034756,1733236170518,-500.0,0.00030837,7]
[344034757,1733236170540,-500.0,0.00030837,7]
[344034758,1733236170564,-500.0,0.00030837,7]
[344034759,1733236170589,-500.0,0.00030837,7]
[344034760,1733236170612,-758.4480361,0.00030847,2]
[344034761,1733236170636,-193.75141635,0.00030847,2]
[344034762,1733236170660,-170.077,0.00030855,27]
[344034763,1733236170683,-500.0,0.0003086,7]
[344034764,1733236170706,-500.0,0.00030861,7]
[344034765,1733236170729,-500.0,0.00030861,7]
[344034766,1733236170752,-500.0,0.00030861,7]
[344034767,1733236170775,-500.0,0.00030861,7]
[344034768,1733236170797,-500.0,0.00030861,7]
[344034769,1733236170820,-193.75141635,0.00030861,2]
[344034770,1733236170843,-755.06771339,0.00030861,2]
[344034771,1733236170865,-500.0,0.00030861,7]
[344034772,1733236170888,-500.0,0.00030861,7]
[344034773,1733236170915,-758.4480361,0.00030861,2]
[344034774,1733236170938,-346.38557549,0.00030862,7]
[344034775,1733236170961,-500.0,0.00030862,7]
[344034776,1733236170984,-500.0,0.00030862,7]
[344034777,1733236171009,-500.0,0.00030862,7]
[344034778,1733236171033,-556.26862408,0.00030862,7]
[344034779,1733236171059,-500.0,0.00030862,7]
[344034780,1733236171084,-374.63291134,0.00030862,7]
[344034781,1733236171114,-502.52929526,0.00030862,7]
[344034782,1733236171143,-500.0,0.00030862,7]
[344034783,1733236171167,-378.07745379,0.00030862,7]
[344034784,1733236171192,-500.0,0.00030862,7]
[344034785,1733236171218,-183.8,0.00030862,7]
[344034786,1733236171244,-6666.0,0.00030863,2]
[344034787,1733236171268,-500.0,0.00030901,7]
[344034788,1733236171292,-198.55,0.00030901,7]
[344034789,1733236171320,-500.0,0.00030901,7]
[344034790,1733236171344,-500.0,0.00030901,7]
[344034791,1733236171367,-404.96,0.00030901,7]
[344034792,1733236171391,-500.0,0.00030901,7]
[344034793,1733236171415,-500.0,0.00030901,7]
[344034794,1733236171438,-500.0,0.00030901,7]
[344034795,1733236171462,-500.0,0.00030901,7]
[344034796,1733236171487,-500.0,0.00030901,7]
[344034797,1733236171512,-589.53,0.00030901,7]
[344034798,1733236171535,-500.0,0.00030901,7]
[344034799,1733236171563,-157.7,0.00030901,7]
[344034800,1733236171592,-549.2,0.00030901,7]
[344034801,1733236171615,-255.22042211,0.00030901,7]
[344034802,1733236171638,-500.0,0.00030902,7]
[344034803,1733236171662,-500.0,0.00030902,7]
[344034804,1733236171687,-500.0,0.00030902,7]
[344034805,1733236171711,-474.8192,0.00030902,7]
[344034806,1733236171736,-776.71,0.00030931,10]
[344034807,1733236171761,-647.26,0.00030931,10]
[344034808,1733236171783,-500.0,0.00030932,7]
[344034809,1733236171811,-500.0,0.00030932,7]
[344034810,1733236171837,-500.0,0.00030932,7]
[344034811,1733236171860,-361.28,0.00030932,3]
[344034812,1733236171882,-500.0,0.00030933,7]
[344034813,1733236171905,-500.0,0.00030933,7]
[344034814,1733236171929,-500.0,0.00030933,7]
[344034815,1733236171952,-500.0,0.00030933,7]
[344034816,1733236171977,-500.0,0.00030933,7]
[344034817,1733236171999,-500.0,0.00030933,7]
[344034818,1733236172023,-500.0,0.00030933,7]
[344034819,1733236172047,-589.53,0.00030933,7]
[344034820,1733236172073,-221.83011099,0.00030934,7]
[344034821,1733236172095,-500.0,0.00030934,7]
[344034822,1733236172116,-502.67559325,0.00030934,7]
[344034823,1733236172139,-500.0,0.00030934,7]
[344034824,1733236172161,-500.0,0.00030934,7]
[344034825,1733236172184,-500.0,0.00030934,7]
[344034826,1733236172207,-357.59184177,0.00030934,7]
[344034827,1733236172231,-500.0,0.00030934,7]
[344034828,1733236172255,-500.0,0.00030934,7]
[344034829,1733236172279,-500.0,0.00030934,7]
[344034830,1733236172302,-500.0,0.00030934,7]
[344034831,1733236172330,-500.0,0.00030934,7]
[344034832,1733236172351,-500.0,0.00030934,7]
[344034833,1733236172374,-500.0,0.00030934,7]
[344034834,1733236172396,-500.0,0.00030934,7]
[344034835,1733236172419,-500.0,0.00030934,7]
[344034836,1733236172442,-500.0,0.00030934,7]
[344034837,1733236172464,-500.0,0.00030934,7]
[344034838,1733236172487,-500.0,0.00030934,7]
[344034839,1733236172508,-500.0,0.00030934,7]
[344034840,1733236172530,-500.0,0.00030934,7]
[344034841,1733236172559,-500.0,0.00030934,7]
[344034842,1733236172585,-500.0,0.00030934,7]
[344034843,1733236172608,-500.0,0.00030934,7]
[344034844,1733236172632,-500.0,0.00030934,7]
[344034845,1733236172655,-500.0,0.00030934,7]
[344034846,1733236172814,-500.0,0.00030934,7]
[344034847,1733236172840,-500.0,0.00030934,7]
[344034848,1733236172865,-500.0,0.00030934,7]
[344034849,1733236172888,-500.0,0.00030934,7]
[344034850,1733236172913,-500.0,0.00030934,7]
[344034851,1733236172937,-500.0,0.00030934,7]
[344034852,1733236172962,-500.0,0.00030934,7]
[344034853,1733236172988,-500.0,0.00030934,7]
[344034854,1733236173014,-500.0,0.00030934,7]
[344034855,1733236173039,-500.0,0.00030934,7]
[344034856,1733236173068,-500.0,0.00030934,7]
[344034857,1733236173094,-384.50399012,0.00030934,7]
[344034858,1733236173120,-500.0,0.00030936,7]
[344034859,1733236173145,-500.0,0.00030936,7]
[344034860,1733236173171,-500.0,0.00030936,7]
[344034861,1733236173199,-589.53,0.00030936,7]
[344034862,1733236173223,-528.8,0.00030937,7]
[344034863,1733236173251,-500.0,0.00030937,7]
[344034864,1733236173277,-500.0,0.00030937,7]
[344034865,1733236173303,-456.72524232,0.00030937,7]
[344034866,1733236173331,-540.36,0.00030937,7]
[344034867,1733236173355,-500.0,0.00030937,7]
[344034868,1733236173381,-500.0,0.00030937,7]
[344034869,1733236173406,-500.0,0.00030937,7]
[344034870,1733236173430,-500.0,0.00030937,7]
[344034871,1733236173454,-500.0,0.00030937,7]
[344034872,1733236173478,-500.0,0.00030937,7]
[344034873,1733236173502,-599.0939296,0.00030937,7]
[344034874,1733236173525,-500.0,0.00030937,7]
[344034875,1733236173550,-500.0,0.00030937,7]
[344034876,1733236173578,-500.0,0.00030937,7]
[344034877,1733236173604,-500.0,0.00030937,7]
[344034878,1733236173629,-410.31220251,0.00030937,7]
[344034879,1733236173655,-500.0,0.00030937,7]
[344034880,1733236173693,-500.0,0.00030937,7]
[344034881,1733236173719,-396.36,0.00030937,7]
[344034882,1733236173744,-500.0,0.00030937,7]
[344034883,1733236173770,-500.0,0.00030937,7]
[344034884,1733236173795,-180.64,0.00030937,7]
[344034885,1733236173824,-500.0,0.00030937,7]
[344034886,1733236173849,-500.0,0.00030937,7]
[344034887,1733236173875,-170.18230045,0.0003094,7]
[344034888,1733236173900,-417.59460961,0.0003094,7]
[344034889,1733236173927,-215.44,0.00030941,7]
[344034890,1733236173954,-500.0,0.00030941,7]
[344034891,1733236173979,-247.48,0.00030941,7]
[344034892,1733236174005,-500.0,0.00030941,7]
[344034893,1733236174030,-500.0,0.00030941,7]
[344034894,1733236174058,-428.38,0.00030941,7]
[344034895,1733236174086,-500.0,0.00030941,7]
[344034896,1733236174112,-589.53,0.00030941,7]
[344034897,1733236174138,-640.01,0.00030941,7]
[344034898,1733236174162,-532.103816,0.00030942,7]
[344034899,1733236174186,-532.103816,0.00030942,7]
[344034900,1733236174209,-532.103816,0.00030942,7]
[344034901,1733236174233,-532.103816,0.00030942,7]
[344034902,1733236174258,-532.103816,0.00030942,7]
[344034903,1733236174282,-532.103816,0.00030942,7]
[344034904,1733236174309,-532.103816,0.00030942,7]
[344034905,1733236174334,-532.103816,0.00030942,7]
[344034906,1733236174359,-532.103816,0.00030942,7]
[344034907,1733236174385,-532.103813,0.00030942,7]
[344034908,1733236174410,-151.0,0.00030942,7]
[344034909,1733236174437,-241.085944,0.00030942,7]
[344034910,1733236174462,-151.0,0.00030942,7]
[344034911,1733236174489,-151.0,0.00030942,7]
[344034912,1733236174515,-151.0,0.00030942,7]
[344034913,1733236174540,-169.0,0.00030942,7]
[344034914,1733236174564,-154.578384,0.00030942,7]
[344034915,1733236174593,-446.26501808,0.00030942,7]
[344034916,1733236174616,-153.0,0.00030959,30]
[344034917,1733236174644,-153.0,0.00030959,30]
[344034918,1733236174671,-153.0,0.00030959,30]
[344034919,1733236174698,-469.8182561,0.00030959,30]
[344034920,1733236174725,-153.0,0.00030959,30]
[344034921,1733236174751,-153.0,0.00030959,30]
[344034922,1733236174775,-153.0,0.00030959,30]
[344034923,1733236174800,-500.0,0.0003096,2]
[344034924,1733236174830,-500.0,0.0003096,2]
[344034925,1733236174856,-500.0,0.0003096,2]
[344034926,1733236174883,-432.00824853,0.0003096,2]
[344034927,1733236174911,-540.29659321,0.0003096,2]
[344034928,1733236174938,-500.0,0.0003096,7]
[344034929,1733236174965,-500.0,0.0003096,7]
[344034930,1733236174992,-355.38,0.0003096,7]
[344034931,1733236175019,-500.0,0.0003096,7]
[344034932,1733236175044,-500.0,0.0003096,7]
[344034933,1733236175074,-500.0,0.0003096,7]
[344034934,1733236175099,-500.0,0.0003096,7]
[344034935,1733236175123,-500.0,0.0003096,7]
[344034936,1733236175148,-500.0,0.0003096,7]
[344034937,1733236175172,-500.0,0.0003096,7]
[344034938,1733236175203,-500.0,0.0003096,7]
[344034939,1733236175226,-500.0,0.0003096,7]
[344034940,1733236175249,-500.0,0.0003096,7]
[344034941,1733236175271,-500.0,0.0003096,7]
[344034942,1733236175293,-500.0,0.0003096,7]
[344034943,1733236175322,-500.0,0.0003096,7]
[344034944,1733236175346,-500.0,0.0003096,7]
[344034945,1733236175369,-242.01552625,0.0003096,7]
[344034946,1733236175394,-589.53,0.0003096,7]
[344034947,1733236175418,-589.53,0.0003096,7]
[344034948,1733236175443,-589.53,0.0003096,7]
[344034949,1733236175468,-589.53,0.0003096,7]
[344034950,1733236175492,-589.53,0.0003096,7]
[344034951,1733236175516,-589.53,0.0003096,7]
[344034952,1733236175540,-589.53,0.0003096,7]
[344034953,1733236175571,-589.53,0.0003096,7]
[344034954,1733236175599,-589.53,0.0003096,7]
[344034955,1733236175624,-589.53,0.0003096,7]
[344034956,1733236175648,-589.53,0.0003096,7]
[344034957,1733236175783,-589.53,0.0003096,7]
[344034958,1733236175815,-589.53,0.0003096,7]
[344034959,1733236175842,-589.53,0.0003096,7]
[344034960,1733236175868,-589.53,0.0003096,7]
[344034961,1733236175894,-589.53,0.0003096,7]
[344034962,1733236175919,-589.53,0.0003096,7]
[344034963,1733236175945,-589.53,0.0003096,7]
[344034964,1733236175970,-589.5625,0.0003096,7]
[344034965,1733236175995,-32483.93892467,0.00030961,2]
[344034966,1733236176020,-151.0,0.00030961,7]
[344034967,1733236176044,-151.0,0.00030961,7]
[344034968,1733236176071,-151.0,0.00030961,7]
[344034969,1733236176094,-151.0,0.00030961,7]
[344034970,1733236176119,-151.0,0.00030961,7]
[344034971,1733236176144,-165.710752,0.00030961,7]
[344034972,1733236176169,-294.473028,0.00030961,7]
[344034973,1733236176192,-151.0,0.00030961,7]
[344034974,1733236176215,-151.0,0.00030961,7]
[344034975,1733236176238,-151.0,0.00030961,7]
[344034976,1733236176262,-151.0,0.00030961,7]
[344034977,1733236176285,-151.0,0.00030961,7]
[344034978,1733236176311,-151.0,0.00030961,7]
[344034979,1733236176339,-151.0,0.00030961,7]
[344034980,1733236176370,-151.0,0.00030961,7]
[344034981,1733236176394,-151.0,0.00030961,7]
[344034982,1733236176420,-151.0,0.00030961,7]
[344034983,1733236176444,-151.0,0.00030961,7]
[344034984,1733236176470,-151.0,0.00030961,7]
[344034985,1733236176493,-151.0,0.00030961,7]
[344034986,1733236176516,-168.17011,0.00030961,7]
[344034987,1733236176547,-185.28,0.00030962,7]
[344034988,1733236176576,-151.0,0.00030963,7]
[344034989,1733236176603,-151.0,0.00030963,7]
[344034990,1733236176628,-151.0,0.00030963,7]
[344034991,1733236176652,-151.0,0.00030963,7]
[344034992,1733236176679,-151.0,0.00030963,7]
[344034993,1733236176709,-249.038088,0.00030963,7]
[344034994,1733236176736,-215.959666,0.00030963,7]
[344034995,1733236176764,-500.0,0.00030973,5]
[344034996,1733236176791,-275.98696753,0.00030973,2]
[344034997,1733236176824,-500.0,0.00030973,5]
[344034998,1733236176852,-11160.23324681,0.00031,120]
[344034999,1733236176879,-254.59835272,0.00031004,7]
[344035000,1733236176908,-506.18436438,0.00031004,7]
[344035001,1733236176940,-504.27089288,0.00031014,7]
[344035002,1733236176969,-155.06770781,0.00031317,2]
[344035003,1733236176997,-176.123478,0.0003149,2]
[344035004,1733236177027,-1000.0,0.00031506,30]
[344035005,1733236177055,-1000.0,0.00031506,30]
[344035006,1733236177095,-1000.0,0.00031506,30]
[344035007,1733236177123,-500.0,0.00031506,30]
[344035008,1733236177153,-1000.0,0.00031521,5]
[344035009,1733236177180,-500.0,0.00031521,5]
[344035010,1733236177207,-163.168516,0.00031546,2]
[344035011,1733236177233,-181.548056,0.00031552,2]
[344035012,1733236177259,-254.24736137,0.0003158,120]
[344035068,1733236232727,-155.2028305,0.00030295,2]
[344035070,1733236232737,-500.0,0.00030902,7]
[344035071,1733236232751,-539.38,0.00030951,10]
[344035073,1733236232761,-414.67996997,0.00030951,10]
[344035085,1733236232867,-34.81003003,0.00030951,10]
[344035088,1733236232878,-374.57,0.00030951,10]
[344035090,1733236232888,-312.14,0.00030951,10]
[344035093,1733236232899,-151.0,0.00030961,7]
[344035096,1733236232909,-151.0,0.00030961,7]
[344035098,1733236232919,-151.0,0.00030961,7]
[344035100,1733236232929,-151.0,0.00030961,7]
[344035102,1733236232939,-151.0,0.00030961,7]
[344035104,1733236232949,-151.0,0.00030961,7]
[344035106,1733236232959,-151.0,0.00030961,7]
[344035108,1733236232969,-151.0,0.00030961,7]
[344035110,1733236232979,-151.0,0.00030961,7]
[344035112,1733236232989,-151.0,0.00030961,7]
[344035114,1733236232998,-205.921385,0.00030961,7]
[344035116,1733236233008,-266.051908,0.00030961,7]
[344035118,1733236233019,-266.051908,0.00030961,7]
[344035120,1733236233029,-266.051908,0.00030961,7]
[344035131,1733236233124,-266.051908,0.00030961,7]
[344035133,1733236233135,-266.051908,0.00030961,7]
[344035135,1733236233145,-266.051908,0.00030961,7]
[344035136,1733236233155,-266.051908,0.00030961,7]
[344035137,1733236233166,-266.051908,0.00030961,7]
[344035138,1733236233177,-266.051908,0.00030961,7]
[344035139,1733236233187,-266.051908,0.00030961,7]
[344035140,1733236233197,-266.051908,0.00030961,7]
[344035141,1733236233207,-266.051908,0.00030961,7]
[344035142,1733236233217,-266.051908,0.00030961,7]
[344035143,1733236233227,-266.051908,0.00030961,7]
[344035144,1733236233237,-266.051908,0.00030961,7]
[344035145,1733236233247,-266.051908,0.00030961,7]
[344035146,1733236233258,-266.051908,0.00030961,7]
[344035147,1733236233268,-266.051908,0.00030961,7]
[344035148,1733236233277,-266.051908,0.00030961,7]
[344035149,1733236233287,-266.051908,0.00030961,7]
[344035150,1733236233297,-77272.48273952,0.00030961,10]
[344035157,1733236237448,333.48799,0.00029,120]
[344035224,1733236239087,-41548.54447235,0.00030961,10]
[344035225,1733236239142,-85.85040823,0.00030961,10]
[344035226,1733236239155,-958199.86481239,0.00030961,10]
[344035227,1733236239167,-141199.9999972,0.00030961,10]
[344035259,1733236243506,-260.12,0.00030951,10]
[344035260,1733236243515,-6679.18188603,0.00030961,10]
[344035261,1733236243658,-73.06104801,0.00030961,10]
[344035262,1733236243669,-94114.0,0.00030961,10]
[344035263,1733236243681,-1722.48837836,0.00030961,10]
[344035264,1733236243692,-329.33720485,0.00030961,10]
[344035265,1733236243705,-436.38011,0.00030961,10]
[344035267,1733236243721,-1948.04848266,0.00030961,10]
[344035269,1733236243732,-6021359.73810736,0.00030961,10]
[344035272,1733236243743,-1654.55450738,0.00030961,10]
[344035308,1733236246519,-500.0,0.00030862,7]
[344035309,1733236246529,-500.0,0.00030933,7]
[344035310,1733236246539,-500.0,0.00030937,7]
[344035311,1733236246548,-500.0,0.00030941,7]
[344035312,1733236246558,-10400.0,0.00030961,10]
[344035313,1733236246569,-71000.0000004,0.00030961,10]
[344035314,1733236246581,-601.899965,0.00030961,10]
[344035336,1733236253356,327.261581,0.00030961,120]
[344035337,1733236268738,1092.77259778,0.00030961,120]
[344035338,1733236300847,173.790988,0.00030137,120]
[344035375,1733236420003,162.721575,0.00013973,2]
[344035383,1733236958318,183.160804,0.00030137,120]
[344035397,1733237135100,-181.548056,0.00029117,2]
[344035398,1733237135124,-1309.9944871,0.00029137,2]
[344035399,1733237135147,-114.9574569,0.00029331,2]
[344035401,1733237150258,162.721575,0.00013973,2]
[344035407,1733237238205,-660.0,0.00029262,2]
[344035408,1733237238229,-1192.3198139,0.00029331,2]
[344035409,1733237238253,-205.529928,0.00029381,2]
[344035410,1733237238285,-822.74255334,0.00029504,2]
[344035411,1733237247120,-1514.69200136,0.00029504,2]
[344035412,1733237247143,-1394.19198112,0.00029588,2]
[344035413,1733237347223,-5480.21062868,0.00029588,2]
[344035414,1733237347248,-202.0,0.0003,2]
[344035415,1733237347273,-157.12532208,0.00030283,2]
[344035416,1733237347302,-152.74,0.000303,31]
[344035417,1733237347328,-400.0,0.00030759,2]
[344035418,1733237347357,-400.0,0.00030759,2]
[344035419,1733237347383,-251.44098258,0.00030759,30]
[344035420,1733237347408,-159.05036512,0.0003076,2]
[344035421,1733237347433,-500.0,0.00030836,7]
[344035422,1733237347472,-500.0,0.00030836,7]
[344035423,1733237347499,-215.11186553,0.00030836,7]
[344035424,1733237347528,-200.0,0.00030836,7]
[344035425,1733237347554,-500.0,0.00030836,7]
[344035426,1733237347579,-500.0,0.00030836,7]
[344035427,1733237347613,-502.45314678,0.00030836,7]
[344035428,1733237347638,-500.0,0.00030836,7]
[344035429,1733237347662,-572.69,0.00030836,7]
[344035430,1733237347687,-500.0,0.00030836,7]
[344035431,1733237347712,-387.43756512,0.00030836,7]
[344035432,1733237347736,-7798.05095604,0.00030836,2]
[344035433,1733237347761,-500.0,0.00030837,7]
[344035434,1733237347785,-203.2708152,0.00030837,7]
[344035435,1733237347810,-500.0,0.00030837,7]
[344035436,1733237347833,-173.3828838,0.00030851,7]
[344035437,1733237347861,-500.0,0.0003086,7]
[344035438,1733237347886,-602.78622443,0.0003086,7]
[344035439,1733237347913,-500.0,0.0003086,7]
[344035440,1733237347939,-500.0,0.0003086,7]
[344035441,1733237347965,-500.0,0.0003086,7]
[344035442,1733237347994,-500.0,0.0003086,7]
[344035443,1733237348019,-500.0,0.0003086,7]
[344035444,1733237348045,-500.0,0.0003086,7]
[344035445,1733237348072,-500.0,0.0003086,7]
[344035446,1733237348101,-2523.62,0.0003086,7]
[344035447,1733237348133,-623.7,0.0003086,7]
[344035448,1733237348160,-500.0,0.0003086,7]
[344035449,1733237348186,-557.99890649,0.0003086,7]
[344035450,1733237348211,-486.00729846,0.0003086,7]
[344035451,1733237348236,-289.30209539,0.0003086,7]
[344035452,1733237348264,-500.0,0.0003086,7]
[344035453,1733237348294,-500.0,0.0003086,7]
[344035454,1733237348321,-209.89932499,0.00030861,7]
[344035455,1733237348361,-500.0,0.00030861,7]
[344035456,1733237348394,-500.0,0.00030861,7]
[344035457,1733237348420,-3371.46556281,0.00030861,2]
[344035458,1733237348446,-170.077,0.00030861,27]
[344035459,1733237348471,-500.0,0.00030862,7]
[344035460,1733237348495,-500.0,0.00030862,7]
[344035461,1733237348520,-500.0,0.00030862,7]
[344035462,1733237348543,-518.36606876,0.00030862,7]
[344035463,1733237348572,-500.0,0.00030862,7]
[344035464,1733237348603,-500.0,0.00030862,7]
[344035465,1733237348627,-500.0,0.00030862,7]
[344035466,1733237348653,-500.0,0.00030862,7]
[344035467,1733237348678,-500.0,0.00030862,7]
[344035468,1733237348701,-1522.6077763,0.000309,3]
[344035469,1733237348876,-343.7,0.000309,2]
[344035470,1733237348903,-500.0,0.00030901,7]
[344035471,1733237348930,-500.0,0.00030901,7]
[344035472,1733237348959,-500.0,0.00030932,7]
[344035473,1733237348998,-500.0,0.00030932,7]
[344035474,1733237349023,-500.0,0.00030932,7]
[344035475,1733237349053,-500.0,0.00030932,7]
[344035476,1733237349080,-623.7,0.00030932,7]
[344035477,1733237349110,-500.0,0.00030933,7]
[344035478,1733237349134,-502.69843321,0.00030933,7]
[344035479,1733237349157,-500.0,0.00030933,7]
[344035480,1733237349181,-500.0,0.00030933,7]
[344035481,1733237349205,-518.32786223,0.00030933,7]
[344035482,1733237349230,-500.0,0.00030936,7]
[344035483,1733237349256,-500.0,0.00030936,7]
[344035484,1733237349283,-500.0,0.00030936,7]
[344035485,1733237349315,-500.0,0.00030936,7]
[344035486,1733237349344,-500.0,0.00030936,7]
[344035487,1733237349373,-500.0,0.00030936,7]
[344035488,1733237349399,-2523.62,0.00030936,7]
[344035489,1733237349425,-510.12644664,0.00030937,7]
[344035490,1733237349450,-500.0,0.0003094,7]
[344035491,1733237349477,-500.0,0.0003094,7]
[344035492,1733237349503,-516.76662678,0.00030941,7]
[344035493,1733237349529,-500.0,0.00030941,7]
[344035494,1733237349555,-500.0,0.00030941,7]
[344035495,1733237349581,-161.44,0.00030941,7]
[344035496,1733237349609,-500.0,0.00030941,7]
[344035497,1733237349635,-500.0,0.00030951,7]
[344035498,1733237349659,-475.17219538,0.00030951,7]
[344035499,1733237349685,-500.0,0.00030951,7]
[344035500,1733237349711,-500.0,0.00030951,7]
[344035501,1733237349735,-500.0,0.00030951,7]
[344035502,1733237349759,-500.0,0.00030951,7]
[344035503,1733237349783,-500.0,0.00030951,7]
[344035504,1733237349809,-2523.62,0.00030951,7]
[344035505,1733237349835,-2523.62,0.00030951,7]
[344035506,1733237349868,-623.7,0.00030951,7]
[344035507,1733237349894,-500.0,0.00030951,2]
[344035508,1733237349922,-500.0,0.00030951,2]
[344035509,1733237349950,-500.0,0.00030951,2]
[344035510,1733237349982,-500.0,0.00030951,2]
[344035511,1733237350008,-500.0,0.00030951,2]
[344035512,1733237350037,-500.0,0.00030951,2]
[344035513,1733237350064,-596.24936487,0.00030951,2]
[344035514,1733237350098,-174.30259021,0.00030951,2]
[344035515,1733237350125,-500.0,0.00030952,7]
[344035516,1733237350151,-500.0,0.00030952,7]
[344035517,1733237350175,-500.0,0.00030952,7]
[344035518,1733237350199,-500.0,0.00030952,7]
[344035519,1733237350225,-500.0,0.00030952,7]
[344035520,1733237350254,-500.0,0.00030952,7]
[344035521,1733237350282,-381.97894113,0.00030952,7]
[344035522,1733237350313,-500.0,0.00030952,7]
[344035523,1733237350351,-264.89096934,0.00030952,7]
[344035524,1733237350382,-500.0,0.00030952,7]
[344035525,1733237350410,-500.0,0.00030952,7]
[344035526,1733237350440,-500.0,0.00030952,7]
[344035527,1733237350485,-500.0,0.00030952,7]
[344035528,1733237350526,-500.0,0.00030952,7]
[344035529,1733237350557,-500.0,0.00030952,7]
[344035530,1733237350587,-538.40957286,0.00030952,7]
[344035531,1733237350627,-500.0,0.00030952,7]
[344035532,1733237350655,-500.0,0.00030952,7]
[344035533,1733237350684,-500.0,0.00030952,7]